fUST/lending_fUST_20250214
["ID","MTS","AMOUNT","RATE_DAILY","PERIOD"]
[352995903,1739478645282,-582.68850843,0.00014109,2]
[352995904,1739478645294,-1241.11685219,0.00014113,2]
[352995905,1739478645304,-13268.2024785,0.00014154,2]
[352995906,1739478645314,-2337.76,0.00014191,2]
[352995907,1739478645323,-500.0,0.00014191,2]
[352995908,1739478645333,-500.0,0.00014191,2]
[352995909,1739478645343,-500.0,0.00014191,2]
[352995910,1739478645352,-500.0,0.00014191,2]
[352995911,1739478645362,-500.0,0.00014191,2]
[352995912,1739478645372,-500.0,0.00014191,2]
[352995913,1739478645382,-590.03,0.00014191,2]
[352995914,1739478645392,-656.21,0.00014191,2]
[352995915,1739478645402,-500.0,0.00014191,2]
[352995916,1739478645412,-500.0,0.00014191,2]
[352995917,1739478645422,-500.0,0.00014191,2]
[352995918,1739478645432,-500.0,0.00014191,2]
[352995919,1739478645441,-500.0,0.00014191,2]
[352995920,1739478645451,-720.01,0.00014191,2]
[352995921,1739478645461,-370.38,0.00014191,2]
[352995922,1739478645470,-500.0,0.00014191,2]
[352995923,1739478645479,-500.0,0.00014191,2]
[352995924,1739478645489,-1229.09,0.00014191,2]
[352995925,1739478645499,-1070.11,0.00014191,2]
[352995926,1739478645508,-811.16,0.00014191,2]
[352995927,1739478645518,-500.0,0.00014191,2]
[352995928,1739478645527,-1719.04,0.00014191,2]
[352995929,1739478645537,-500.0,0.00014191,2]
[352995930,1739478645546,-500.0,0.00014191,2]
[352995931,1739478645555,-500.0,0.00014191,2]
[352995932,1739478645565,-602.98,0.00014191,2]
[352995933,1739478645575,-500.0,0.00014191,2]
[352995934,1739478645585,-12112.53,0.00014191,2]
[352995935,1739478645595,-1755.22,0.00014191,2]
[352995936,1739478645605,-500.0,0.00014191,2]
[352995937,1739478645615,-1637.93,0.00014191,2]
[352995938,1739478645625,-566.21,0.00014191,2]
[352995939,1739478645635,-751.51,0.00014191,2]
[352995940,1739478645644,-500.0,0.00014191,2]
[352995941,1739478645657,-700.16,0.00014191,2]
[352995942,1739478645667,-559.29,0.00014191,2]
[352995943,1739478645677,-500.0,0.00014191,2]
[352995944,1739478645687,-500.0,0.00014191,2]
[352995945,1739478645698,-500.0,0.00014191,2]
[352995946,1739478645708,-6484.2,0.00014191,2]
[352995947,1739478645717,-500.0,0.00014191,2]
[352995948,1739478645727,-543.91,0.00014191,2]
[352995949,1739478645739,-500.0,0.00014191,2]
[352995950,1739478645749,-500.0,0.00014191,2]
[352995951,1739478645759,-860.14,0.00014191,2]
[352995952,1739478645768,-1128.84,0.00014191,2]
[352995953,1739478645778,-500.0,0.00014191,2]
[352995954,1739478645787,-500.0,0.00014191,2]
[352995955,1739478645797,-1236.67,0.00014191,2]
[352995956,1739478645807,-500.0,0.00014191,2]
[352995957,1739478645817,-950.41,0.00014191,2]
[352995958,1739478645826,-500.0,0.00014191,2]
[352995959,1739478645836,-500.0,0.00014191,2]
[352995960,1739478645846,-500.0,0.00014191,2]
[352995961,1739478645856,-2573.18,0.00014191,2]
[352995962,1739478645866,-536.48,0.00014191,2]
[352995963,1739478645875,-529.08,0.00014191,2]
[352995964,1739478645885,-500.0,0.00014191,2]
[352995965,1739478645894,-555.08,0.00014191,2]
[352995967,1739478645904,-500.0,0.00014191,2]
[352995968,1739478645914,-1277.23,0.00014191,2]
[352995969,1739478645923,-500.0,0.00014191,2]
[352995970,1739478645933,-500.0,0.00014191,2]
[352995971,1739478645942,-500.0,0.00014191,2]
[352995972,1739478645954,-168.991923,0.0001421,5]
[352995973,1739478645964,-503.46719987,0.00014271,2]
[352995974,1739478645976,-2337.76,0.00014273,2]
[352995975,1739478645986,-500.0,0.00014273,2]
[352995976,1739478645995,-500.0,0.00014273,2]
[352995977,1739478646004,-500.0,0.00014273,2]
[352995978,1739478646014,-500.0,0.00014273,2]
[352995979,1739478646023,-500.0,0.00014273,2]
[352995980,1739478646033,-500.0,0.00014273,2]
[352995981,1739478646043,-590.03,0.00014273,2]
[352995982,1739478646053,-656.21,0.00014273,2]
[352995983,1739478646063,-500.0,0.00014273,2]
[352995984,1739478646072,-500.0,0.00014273,2]
[352995985,1739478646083,-500.0,0.00014273,2]
[352995986,1739478646093,-500.0,0.00014273,2]
[352995987,1739478646103,-500.0,0.00014273,2]
[352995988,1739478646113,-720.01,0.00014273,2]
[352995989,1739478646123,-500.0,0.00014273,2]
[352995990,1739478646133,-500.0,0.00014273,2]
[352995991,1739478646143,-1229.09,0.00014273,2]
[352995992,1739478646153,-1070.11,0.00014273,2]
[352995993,1739478646163,-811.16,0.00014273,2]
[352995994,1739478646173,-500.0,0.00014273,2]
[352995995,1739478646182,-1719.04,0.00014273,2]
[352995996,1739478646192,-500.0,0.00014273,2]
[352995997,1739478646202,-500.0,0.00014273,2]
[352995998,1739478646212,-500.0,0.00014273,2]
[352995999,1739478646221,-602.98,0.00014273,2]
[352996000,1739478646230,-500.0,0.00014273,2]
[352996001,1739478646240,-12112.53,0.00014273,2]
[352996002,1739478646249,-1755.22,0.00014273,2]
[352996003,1739478646258,-500.0,0.00014273,2]
[352996004,1739478646267,-1637.93,0.00014273,2]
[352996005,1739478646278,-566.21,0.00014273,2]
[352996006,1739478646288,-751.51,0.00014273,2]
[352996007,1739478646297,-500.0,0.00014273,2]
[352996008,1739478646306,-700.16,0.00014273,2]
[352996009,1739478646315,-559.29,0.00014273,2]
[352996010,1739478646324,-500.0,0.00014273,2]
[352996011,1739478646334,-500.0,0.00014273,2]
[352996012,1739478646343,-500.0,0.00014273,2]
[352996013,1739478646352,-6484.2,0.00014273,2]
[352996014,1739478646361,-500.0,0.00014273,2]
[352996015,1739478646371,-543.91,0.00014273,2]
[352996016,1739478646381,-500.0,0.00014273,2]
[352996017,1739478646392,-500.0,0.00014273,2]
[352996018,1739478646402,-860.14,0.00014273,2]
[352996019,1739478646411,-1128.84,0.00014273,2]
[352996020,1739478646421,-500.0,0.00014273,2]
[352996021,1739478646430,-500.0,0.00014273,2]
[352996022,1739478646439,-1236.67,0.00014273,2]
[352996023,1739478646448,-500.0,0.00014273,2]
[352996024,1739478646458,-950.41,0.00014273,2]
[352996025,1739478646467,-500.0,0.00014273,2]
[352996026,1739478646477,-500.0,0.00014273,2]
[352996027,1739478646487,-500.0,0.00014273,2]
[352996028,1739478646496,-2573.18,0.00014273,2]
[352996029,1739478646506,-536.48,0.00014273,2]
[352996030,1739478646516,-529.08,0.00014273,2]
[352996031,1739478646526,-500.0,0.00014273,2]
[352996032,1739478646535,-555.08,0.00014273,2]
[352996033,1739478646546,-500.0,0.00014273,2]
[352996034,1739478646556,-1277.23,0.00014273,2]
[352996035,1739478646566,-500.0,0.00014273,2]
[352996036,1739478646575,-498.97578968,0.00014273,2]
[352996037,1739478646584,-500.0,0.00014273,2]
[352996038,1739478646594,-1241.11685219,0.00014284,2]
[352996039,1739478646603,-151.0,0.000143,2]
[352996040,1739478646612,-465.70798247,0.00014319,2]
[352996041,1739478646621,-1109.88908915,0.00014337,2]
[352996042,1739478646632,-719.453721,0.00014354,2]
[352996043,1739478646643,-500.52104974,0.00014355,2]
[352996044,1739478646655,-4012.39,0.00014355,2]
[352996045,1739478646666,-500.0,0.00014355,2]
[352996046,1739478646676,-2337.76,0.00014356,2]
[352996047,1739478646686,-201.5,0.00014356,2]
[352996048,1739478646698,-500.0,0.00014356,2]
[352996049,1739478646708,-500.0,0.00014356,2]
[352996050,1739478646718,-500.0,0.00014356,2]
[352996051,1739478646728,-500.0,0.00014356,2]
[352996052,1739478646739,-500.0,0.00014356,2]
[352996053,1739478646750,-590.03,0.00014356,2]
[352996054,1739478646760,-656.21,0.00014356,2]
[352996055,1739478646770,-500.0,0.00014356,2]
[352996056,1739478646780,-500.0,0.00014356,2]
[352996057,1739478646791,-500.0,0.00014356,2]
[352996058,1739478646801,-500.0,0.00014356,2]
[352996059,1739478646811,-500.0,0.00014356,2]
[352996060,1739478646821,-720.01,0.00014356,2]
[352996061,1739478646830,-500.0,0.00014356,2]
[352996062,1739478646840,-500.0,0.00014356,2]
[352996063,1739478646849,-1229.09,0.00014356,2]
[352996064,1739478646858,-1070.11,0.00014356,2]
[352996065,1739478646869,-811.16,0.00014356,2]
[352996066,1739478646879,-500.0,0.00014356,2]
[352996067,1739478646889,-1719.04,0.00014356,2]
[352996068,1739478646900,-500.0,0.00014356,2]
[352996069,1739478646910,-500.0,0.00014356,2]
[352996070,1739478646920,-500.0,0.00014356,2]
[352996071,1739478646930,-602.98,0.00014356,2]
[352996072,1739478646940,-500.0,0.00014356,2]
[352996073,1739478646952,-10239.99322318,0.00014356,2]
[352996074,1739478647098,-1872.53677682,0.00014356,2]
[352996075,1739478647108,-659.4373541,0.00014356,2]
[352996076,1739478647277,-500.0,0.00013698,2]
[352996077,1739478647286,-500.0,0.00013698,2]
[352996078,1739478647296,-500.0,0.00013698,2]
[352996079,1739478647305,-500.0,0.0001378,2]
[352996080,1739478647315,-500.0,0.00013863,2]
[352996081,1739478647325,-1095.7826459,0.00014356,2]
[352996082,1739478647335,-500.0,0.00014356,2]
[352996083,1739478647345,-1637.93,0.00014356,2]
[352996084,1739478647355,-566.21,0.00014356,2]
[352996085,1739478647366,-751.51,0.00014356,2]
[352996086,1739478647375,-500.0,0.00014356,2]
[352996087,1739478647386,-700.16,0.00014356,2]
[352996088,1739478647396,-559.29,0.00014356,2]
[352996089,1739478647406,-500.0,0.00014356,2]
[352996090,1739478647416,-500.0,0.00014356,2]
[352996091,1739478647425,-500.0,0.00014356,2]
[352996092,1739478647435,-6484.2,0.00014356,2]
[352996093,1739478647445,-500.0,0.00014356,2]
[352996094,1739478647455,-543.91,0.00014356,2]
[352996095,1739478647464,-332.11034065,0.00014356,2]
[352996096,1739478647474,-424.03902834,0.00014356,2]
[352996097,1739478647484,-860.14,0.00014356,2]
[352996098,1739478647494,-1128.84,0.00014356,2]
[352996099,1739478647504,-399.17977554,0.00014356,2]
[352996100,1739478647519,-500.0,0.00014356,2]
[352996101,1739478647529,-1236.67,0.00014356,2]
[352996102,1739478647539,-500.0,0.00014356,2]
[352996103,1739478647549,-950.41,0.00014356,2]
[352996104,1739478647559,-500.0,0.00014356,2]
[352996105,1739478647569,-500.0,0.00014356,2]
[352996106,1739478647579,-500.0,0.00014356,2]
[352996107,1739478647590,-2573.18,0.00014356,2]
[352996108,1739478647600,-536.48,0.00014356,2]
[352996109,1739478647610,-529.08,0.00014356,2]
[352996110,1739478647620,-500.0,0.00014356,2]
[352996111,1739478647630,-555.08,0.00014356,2]
[352996112,1739478647640,-500.0,0.00014356,2]
[352996113,1739478647651,-1277.23,0.00014356,2]
[352996114,1739478647662,-500.0,0.00014356,2]
[352996115,1739478647672,-216.57952526,0.00014356,2]
[352996116,1739478647681,-1200.0,0.00014363,2]
[352996117,1739478647692,-151.0,0.000144,2]
[352996118,1739478647702,-2252.31740298,0.000144,2]
[352996119,1739478647711,-4012.39,0.00014437,2]
[352996120,1739478647721,-500.0,0.00014437,2]
[352996121,1739478647733,-2337.76,0.00014438,2]
[352996122,1739478647744,-500.0,0.00014438,2]
[352996123,1739478647754,-500.0,0.00014438,2]
[352996124,1739478647763,-500.0,0.00014438,2]
[352996125,1739478647773,-598.41213155,0.00014438,2]
[352996126,1739478647782,-500.0,0.00014438,2]
[352996127,1739478647791,-590.03,0.00014438,2]
[352996128,1739478647801,-656.21,0.00014438,2]
[352996129,1739478647811,-484.83188627,0.00014438,2]
[352996130,1739478647941,-500.0,0.00014438,2]
[352996131,1739478647952,-500.0,0.00014438,2]
[352996132,1739478647962,-500.0,0.00014438,2]
[352996133,1739478647972,-500.0,0.00014438,2]
[352996134,1739478647981,-720.01,0.00014438,2]
[352996135,1739478647990,-500.0,0.00014438,2]
[352996136,1739478647998,-500.0,0.00014438,2]
[352996137,1739478648008,-1229.09,0.00014438,2]
[352996138,1739478648018,-811.16,0.00014438,2]
[352996139,1739478648029,-500.0,0.00014438,2]
[352996140,1739478648039,-500.0,0.00014438,2]
[352996141,1739478648050,-500.0,0.00014438,2]
[352996142,1739478648061,-602.98,0.00014438,2]
[352996143,1739478648070,-500.0,0.00014438,2]
[352996144,1739478648081,-12112.53,0.00014438,2]
[352996145,1739478648091,-1755.22,0.00014438,2]
[352996146,1739478648102,-500.0,0.00014438,2]
[352996147,1739478648114,-1637.93,0.00014438,2]
[352996148,1739478648124,-566.21,0.00014438,2]
[352996149,1739478648134,-751.51,0.00014438,2]
[352996150,1739478648144,-500.0,0.00014438,2]
[352996151,1739478648155,-700.16,0.00014438,2]
[352996152,1739478648166,-559.29,0.00014438,2]
[352996153,1739478648176,-500.0,0.00014438,2]
[352996154,1739478648186,-500.0,0.00014438,2]
[352996155,1739478648197,-500.0,0.00014438,2]
[352996156,1739478648208,-6484.2,0.00014438,2]
[352996157,1739478648219,-500.0,0.00014438,2]
[352996158,1739478648229,-543.91,0.00014438,2]
[352996159,1739478648241,-860.14,0.00014438,2]
[352996160,1739478648252,-1128.84,0.00014438,2]
[352996161,1739478648263,-500.0,0.00014438,2]
[352996162,1739478648274,-1236.67,0.00014438,2]
[352996163,1739478648285,-500.0,0.00014438,2]
[352996164,1739478648296,-950.41,0.00014438,2]
[352996165,1739478648306,-500.0,0.00014438,2]
[352996166,1739478648316,-500.0,0.00014438,2]
[352996167,1739478648327,-285.1930905,0.00014438,2]
[352996168,1739478648337,-2573.18,0.00014438,2]
[352996169,1739478648348,-536.48,0.00014438,2]
[352996170,1739478648359,-529.08,0.00014438,2]
[352996171,1739478648369,-500.0,0.00014438,2]
[352996172,1739478648380,-555.08,0.00014438,2]
[352996173,1739478648391,-500.0,0.00014438,2]
[352996174,1739478648403,-1277.23,0.00014438,2]
[352996175,1739478648414,-500.0,0.00014438,2]
[352996176,1739478648424,-1241.11685219,0.00014456,2]
[352996177,1739478648435,-65339.17723572,0.00014499,5]
[352996178,1739478648446,-40010.23960918,0.000145,5]
[352996179,1739478648455,-335452.52927729,0.000145,5]
[352996180,1739478648802,-500.0,0.00013698,2]
[352996181,1739478648812,-500.0,0.00013698,2]
[352996182,1739478648823,-500.0,0.00013698,2]
[352996183,1739478648834,-513.96777686,0.00013698,2]
[352996184,1739478648844,-500.0,0.00013698,2]
[352996185,1739478648854,-52.87394121,0.0001378,2]
[352996198,1739479617105,-203.48570219,0.00012734,2]
[352996201,1739479760079,-291.83344316,0.00010685,2]
[352996224,1739479832289,-108.16655684,0.00010685,2]
[352996225,1739479832298,-46.51429781,0.00012734,2]
[352996226,1739479832308,-1000.0,0.00012993,2]
[352996227,1739479832317,-288.37107819,0.00013598,2]
[352996228,1739479832326,-620.55842613,0.00013598,2]
[352996229,1739479832335,-287.32821101,0.0001369,2]
[352996230,1739479832345,-300.0,0.00013696,2]
[352996231,1739479832355,-500.0,0.00013697,2]
[352996232,1739479832364,-500.0,0.00013697,2]
[352996233,1739479832373,-500.0,0.00013697,2]
[352996234,1739479832384,-500.0,0.00013697,2]
[352996235,1739479832393,-500.0,0.00013697,2]
[352996236,1739479832402,-500.0,0.00013697,2]
[352996237,1739479832412,-519.08743052,0.00013697,2]
[352996238,1739479832422,-500.0,0.00013697,2]
[352996239,1739479832431,-197.3582192,0.00013698,2]
[352996240,1739479832441,-500.0,0.00013698,2]
[352996241,1739479832450,-500.0,0.00013698,2]
[352996242,1739479832460,-528.31744377,0.00013698,2]
[352996243,1739479832469,-500.0,0.00013698,2]
[352996244,1739479832479,-500.0,0.00013698,2]
[352996245,1739479832489,-500.0,0.00013698,2]
[352996247,1739479832499,-500.0,0.00013698,2]
[352996249,1739479832508,-500.0,0.00013698,2]
[352996252,1739479832518,-500.0,0.00013698,2]
[352996254,1739479832527,-500.0,0.00013698,2]
[352996256,1739479832536,-500.0,0.00013698,2]
[352996257,1739479832545,-500.0,0.00013698,2]
[352996260,1739479832554,-500.0,0.00013698,2]
[352996261,1739479832563,-500.0,0.00013698,2]
[352996264,1739479832572,-500.0,0.00013698,2]
[352996265,1739479832581,-626.74415443,0.00013698,2]
[352996266,1739479832591,-515.13833456,0.00013698,2]
[352996267,1739479832600,-500.0,0.00013698,2]
[352996268,1739479832609,-500.0,0.00013698,2]
[352996269,1739479832618,-500.0,0.00013698,2]
[352996270,1739479832628,-500.0,0.00013698,2]
[352996271,1739479832638,-508.73723925,0.00013698,2]
[352996272,1739479832647,-521.13724165,0.00013698,2]
[352996273,1739479832656,-500.0,0.00013698,2]
[352996274,1739479832665,-500.0,0.00013698,2]
[352996275,1739479832675,-500.0,0.00013698,2]
[352996276,1739479832684,-500.0,0.00013698,2]
[352996277,1739479832693,-506.62491005,0.00013698,2]
[352996278,1739479832702,-515.3520278,0.00013698,2]
[352996279,1739479832711,-500.0,0.00013698,2]
[352996280,1739479832721,-500.0,0.00013698,2]
[352996281,1739479832730,-500.0,0.00013698,2]
[352996282,1739479832740,-500.0,0.00013698,2]
[352996283,1739479832749,-310.95308454,0.00013698,2]
[352996284,1739479832759,-500.0,0.00013698,2]
[352996285,1739479832768,-500.0,0.00013698,2]
[352996286,1739479832777,-500.0,0.00013698,2]
[352996287,1739479832787,-500.0,0.00013698,2]
[352996288,1739479832796,-500.0,0.00013698,2]
[352996289,1739479832806,-500.0,0.00013698,2]
[352996290,1739479832815,-500.0,0.00013698,2]
[352996291,1739479832824,-500.0,0.00013698,2]
[352996292,1739479832833,-173.68879527,0.00013698,2]
[352996293,1739479832855,-326.31120473,0.00013698,2]
[352996294,1739479832865,-500.0,0.00013698,2]
[352996295,1739479832874,-500.0,0.00013698,2]
[352996296,1739479832885,-500.0,0.00013698,2]
[352996297,1739479832894,-500.0,0.00013698,2]
[352996298,1739479832903,-500.0,0.00013698,2]
[352996299,1739479832912,-500.0,0.00013698,2]
[352996300,1739479832922,-580.86424752,0.00013698,2]
[352996301,1739479832932,-500.0,0.00013698,2]
[352996302,1739479832942,-500.0,0.00013698,2]
[352996303,1739479832951,-500.0,0.00013698,2]
[352996304,1739479832960,-500.0,0.00013698,2]
[352996305,1739479832970,-500.0,0.00013698,2]
[352996306,1739479832980,-500.0,0.00013698,2]
[352996307,1739479832989,-189.00704725,0.00013698,2]
[352996308,1739479832999,-500.0,0.00013698,2]
[352996309,1739479833008,-500.0,0.00013698,2]
[352996310,1739479833017,-500.0,0.00013698,2]
[352996311,1739479833027,-540.33,0.00013698,2]
[352996312,1739479833037,-500.0,0.00013698,2]
[352996313,1739479833046,-500.0,0.00013698,2]
[352996314,1739479833055,-500.0,0.00013698,2]
[352996315,1739479833066,-500.0,0.00013698,2]
[352996316,1739479833080,-500.0,0.00013698,2]
[352996317,1739479833089,-500.0,0.00013698,2]
[352996318,1739479833099,-500.0,0.00013698,2]
[352996319,1739479833109,-500.0,0.00013698,2]
[352996320,1739479833119,-500.0,0.00013698,2]
[352996321,1739479833128,-500.0,0.00013698,2]
[352996322,1739479833141,-436.41331482,0.00013698,2]
[352996323,1739479833151,-500.0,0.00013698,2]
[352996324,1739479833160,-27.88659722,0.00013698,2]
[352996358,1739479838167,-472.11340278,0.00013698,2]
[352996360,1739479838177,-500.0,0.00013698,2]
[352996362,1739479838188,-500.0,0.00013698,2]
[352996364,1739479838197,-500.0,0.00013698,2]
[352996366,1739479838207,-500.0,0.00013698,2]
[352996368,1739479838217,-230.49546604,0.00013698,2]
[352996370,1739479838227,-244.37911512,0.00013698,2]
[352996372,1739479838237,-500.0,0.00013698,2]
[352996374,1739479838247,-500.0,0.00013698,2]
[352996376,1739479838257,-500.0,0.00013698,2]
[352996378,1739479838266,-590.85,0.00013698,2]
[352996380,1739479838276,-500.0,0.00013698,2]
[352996382,1739479838285,-500.0,0.00013698,2]
[352996384,1739479838295,-500.0,0.00013698,2]
[352996386,1739479838304,-500.0,0.00013698,2]
[352996388,1739479838313,-502.70452684,0.00013698,2]
[352996390,1739479838323,-500.0,0.00013698,2]
[352996391,1739479838332,-500.0,0.00013698,2]
[352996392,1739479838341,-500.0,0.00013698,2]
[352996393,1739479838351,-607.46858783,0.00013698,2]
[352996394,1739479838360,-500.0,0.00013698,2]
[352996396,1739479838369,-500.0,0.00013698,2]
[352996398,1739479838379,-500.0,0.00013698,2]
[352996400,1739479838389,-500.0,0.00013698,2]
[352996402,1739479838399,-500.0,0.00013698,2]
[352996404,1739479838408,-500.0,0.00013698,2]
[352996406,1739479838417,-500.0,0.00013698,2]
[352996408,1739479838427,-500.0,0.00013698,2]
[352996410,1739479838436,-500.0,0.00013698,2]
[352996412,1739479838445,-500.0,0.00013698,2]
[352996414,1739479838455,-291.67801387,0.00013698,2]
[352996416,1739479838465,-524.43,0.00013698,2]
[352996418,1739479838474,-1753.32,0.00013698,2]
[352996420,1739479838484,-500.0,0.00013698,2]
[352996422,1739479838493,-486.8856757,0.00013698,2]
[352996424,1739479838503,-500.0,0.00013698,2]
[352996426,1739479838511,-500.0,0.00013698,2]
[352996428,1739479838521,-500.0,0.00013698,2]
[352996430,1739479838530,-500.0,0.00013698,2]
[352996432,1739479838539,-500.0,0.00013698,2]
[352996434,1739479838549,-500.0,0.00013698,2]
[352996436,1739479838559,-500.0,0.00013698,2]
[352996438,1739479838569,-500.0,0.00013698,2]
[352996440,1739479838579,-500.0,0.00013698,2]
[352996442,1739479838588,-912.59,0.00013698,2]
[352996444,1739479838598,-500.0,0.00013698,2]
[352996446,1739479838609,-500.0,0.00013698,2]
[352996448,1739479838618,-500.0,0.00013698,2]
[352996449,1739479838628,-500.0,0.00013698,2]
[352996450,1739479838637,-528.105748,0.00013698,2]
[352996451,1739479838646,-1487.55,0.00013698,2]
[352996452,1739479838655,-806.12,0.00013698,2]
[352996453,1739479838665,-500.0,0.00013698,2]
[352996454,1739479838673,-500.0,0.00013698,2]
[352996455,1739479838683,-500.0,0.00013698,2]
[352996456,1739479838692,-500.0,0.00013698,2]
[352996457,1739479838701,-500.0,0.00013698,2]
[352996458,1739479838710,-500.0,0.00013698,2]
[352996459,1739479838719,-500.0,0.00013698,2]
[352996460,1739479838729,-500.0,0.00013698,2]
[352996461,1739479838738,-500.0,0.00013698,2]
[352996462,1739479838748,-500.0,0.00013698,2]
[352996463,1739479838757,-500.0,0.00013698,2]
[352996464,1739479838766,-500.0,0.00013698,2]
[352996465,1739479838775,-500.0,0.00013698,2]
[352996466,1739479838784,-500.0,0.00013698,2]
[352996467,1739479838793,-500.0,0.00013698,2]
[352996468,1739479838803,-500.0,0.00013698,2]
[352996469,1739479838812,-500.0,0.00013698,2]
[352996470,1739479838821,-500.0,0.00013698,2]
[352996471,1739479838830,-406.20322179,0.00013698,2]
[352996472,1739479838839,-500.0,0.00013698,2]
[352996473,1739479838849,-527.59,0.00013698,2]
[352996474,1739479838859,-10168.36,0.00013698,2]
[352996475,1739479838869,-219.63500113,0.00013698,2]
[352996477,1739479838879,-500.0,0.00013698,2]
[352996479,1739479838889,-500.0,0.00013698,2]
[352996481,1739479838899,-500.0,0.00013698,2]
[352996483,1739479838909,-500.0,0.00013698,2]
[352996485,1739479838918,-500.0,0.00013698,2]
[352996487,1739479838928,-1312.23,0.00013698,2]
[352996489,1739479838938,-500.0,0.00013698,2]
[352996491,1739479838947,-580.51879037,0.00013698,2]
[352996493,1739479838956,-4887.83,0.00013698,2]
[352996494,1739479838966,-500.0,0.00013698,2]
[352996496,1739479838976,-500.0,0.00013698,2]
[352996498,1739479838986,-500.0,0.00013698,2]
[352996499,1739479838995,-545.96,0.00013698,2]
[352996501,1739479839005,-500.0,0.00013698,2]
[352996502,1739479839014,-500.0,0.00013698,2]
[352996503,1739479839024,-625.34,0.00013698,2]
[352996504,1739479839034,-500.0,0.00013698,2]
[352996505,1739479839044,-500.0,0.00013698,2]
[352996506,1739479839053,-500.0,0.00013698,2]
[352996507,1739479839064,-1434.61,0.00013698,2]
[352996508,1739479839076,-500.0,0.00013698,2]
[352996509,1739479839085,-500.0,0.00013698,2]
[352996510,1739479839095,-500.0,0.00013698,2]
[352996511,1739479839105,-500.0,0.00013698,2]
[352996512,1739479839259,-500.0,0.00013698,2]
[352996513,1739479839269,-867.46,0.00013698,2]
[352996514,1739479839279,-500.8498799,0.00013698,2]
[352996515,1739479839289,-500.0,0.00013698,2]
[352996516,1739479839299,-500.0,0.00013698,2]
[352996517,1739479839309,-500.0,0.00013698,2]
[352996518,1739479839319,-500.0,0.00013698,2]
[352996519,1739479839329,-157.49827465,0.00013698,2]
[352996520,1739479839339,-500.0,0.00013698,2]
[352996521,1739479839348,-500.0,0.00013698,2]
[352996522,1739479839358,-500.0,0.00013698,2]
[352996523,1739479839368,-500.0,0.00013698,2]
[352996524,1739479839378,-500.0,0.00013698,2]
[352996525,1739479839387,-665.94,0.00013698,2]
[352996526,1739479839396,-500.0,0.00013698,2]
[352996527,1739479839405,-500.0,0.00013698,2]
[352996528,1739479839415,-500.0,0.00013698,2]
[352996529,1739479839424,-500.0,0.00013698,2]
[352996530,1739479839434,-500.0,0.00013698,2]
[352996531,1739479839444,-500.0,0.00013698,2]
[352996532,1739479839454,-500.0,0.00013698,2]
[352996533,1739479839464,-500.0,0.00013698,2]
[352996534,1739479839474,-500.0,0.00013698,2]
[352996535,1739479839483,-500.0,0.00013698,2]
[352996536,1739479839493,-500.0,0.00013698,2]
[352996537,1739479839502,-948.34,0.00013698,2]